Cogmind - Beta 16 @@@ ROGUE MODE // 2025.11.03 @ 18:04:18 Player: GayPredator Result: Destroyed by D-53 Grenadier with Mini Grenade Launcher Performance ------------- Evolutions (0) 0 Regions Visited (2) 400 Robots Destroyed (25) 125 Value Destroyed (522) 522 Prototype IDs (2) 40 Alien Tech Used (0) 0 Bonus (0) 0 TOTAL SCORE: 1087 Bonus ------- None Cogmind --------- Core Integrity 0/250 Matter 219/300 Energy 99/100 System Corruption 2% Temperature Cool (0) Movement Core (50) Location -10/Mines Parts ------- > --- POWER (1) -------- (None) > --- PROPULSION (2) --- (None) > --- UTILITY (2) ------ (None) > --- WEAPON (2) ------- (None) > --- INVENTORY (5) ---- Light Ion Engine Small Storage Unit Large Matter Pod (136) Structural Scanner Tractor Beam Peak State ------------ > --- POWER ------------ Ion Engine > --- PROPULSION ------- Light Treads Light Treads > --- UTILITY ---------- Large Storage Unit Seismic Detector > --- WEAPON ----------- Assault Rifle Light Assault Rifle > --- INVENTORY -------- Light Ion Engine Compact Wheel Small Storage Unit Large Matter Pod Structural Scanner Tractor Beam EM Pulse Gun Small Laser Light Assault Rifle Grenade Launcher [Rating: 8] Favorites ----------- Power Ion Engine Engine Ion Engine Propulsion Light Treads Treads Light Treads Utility Large Storage Unit Device Seismic Detector Storage Large Storage Unit Protection Core Shielding Weapon Assault Rifle Energy Gun EM Pulse Gun Ballistic Gun Assault Rifle Launcher Grenade Launcher Slashing Weapon Mining Claw Build | -11 -10 -10 ------- Run | Yrd Mat Min Slots Evolved . | . . . Power . | . . . Propulsion . | . . . Utility . | . . . Weapon . | . . . Parts Attached 16 | 7 4 5 Power 2 | 1 1 . Engine 2 | 1 1 . Core . | . . . Reactor . | . . . Propulsion 2 | 2 . . Treads 2 | 2 . . Leg . | . . . Wheel . | . . . Hover . | . . . Flight . | . . . Utility 5 | 2 1 2 Device 2 | 1 . 1 Storage 2 | 1 1 . Processor . | . . . Hackware . | . . . Protection 1 | . . 1 Artifact . | . . . Weapon 7 | 2 2 3 Energy Gun 2 | . . 2 Energy Cannon . | . . . Ballistic Gun 3 | 2 . 1 Ballistic Cannon . | . . . Launcher 1 | . 1 . Special Weapon . | . . . Impact Weapon . | . . . Slashing Weapon 1 | . 1 . Piercing Weapon . | . . . Special Melee Weapon . | . . . Unidentified Prototypes . | . . . Parts Lost 8 | . . 8 Power 1 | . . 1 Propulsion 2 | . . 2 Utility . | . . . Weapon 5 | . . 5 Highest Loss Streak 8 | . . 8 To Critical Strikes . | . . . Average Backups 10 | 2 10 13 Power 1 | . 1 2 Propulsion . | . 1 . Utility 4 | . 4 6 Weapon 3 | . 3 4 Tool/Special . | . . . Unused Backups 7 | . . 7 Power 1 | . . 1 Propulsion 1 | . . 1 Utility 4 | . . 4 Weapon 1 | . . 1 Tool/Special . | . . . Average Slot Usage (%) 99 | . 99 98 Engine 13 | . 14 13 Treads 27 | . 27 27 Device 13 | . 14 10 Storage 14 | . 14 14 Ballistic Gun 23 | . 24 23 Slashing Weapon 3 | . 3 . Peak Build Rating 8 | 7 8 8 Average Rating 7 | 5 7 7 On Entrance 5 | . 7 8 Avg Prop Armor Cover (%) . | . . . Naked Turns 2 | . . 2 Heaviest Build 31 | 14 31 30 Greatest Support 40 | 40 40 40 Greatest Overweight (x) . | . . . Average Overweight (x) . | . . . Largest Inventory Capacity 15 | 8 15 15 Average Capacity 14 | 7 14 14 Most Carried 15 | 3 15 15 Average Carried 10 | 2 10 12 Final Capacity 15 | 8 15 5 Final Carried 15 | 3 15 5 Class Distribution -------------------- 100% | Mutant Dominant Class ---------------- Mutant | -10/Materials Mutant | -10/Mines Resources | -11 -10 -10 ----------- Run | Yrd Mat Min Matter Collected 871 | 308 380 183 Remotely . | . . . Salvage Created 666 | 107 519 40 Parts 42 | 7 28 7 Haulers Intercepted 1 | . 1 . Recyclers Shooed 2 | . 1 1 Parts Field Recycled . | . . . Retrieved Matter . | . . . Parts Self-Destructed . | . . . Prevented . | . . . Parts Restored . | . . . Kills | -11 -10 -10 ------- Run | Yrd Mat Min Combat Hostiles Destroyed 17 | . 10 7 Guns 13 | . 10 3 AOE 4 | . . 4 Classes Destroyed 8 | 3 4 1 Worker 2 | 1 1 . Tunneler 1 | 1 . . Hauler 1 | . 1 . Recycler 2 | 1 1 . Watcher 2 | . 2 . Swarmer 9 | . 3 6 Grunt 7 | . 7 . Demolisher 1 | . . 1 Best Kill Streak 6 | 1 5 6 Combat Bots Only 6 | . 3 6 Max Kills in Single Turn 2 | 1 1 2 Gunslinging . | . . . Exploded 2 | . . 2 Melee . | . . . Uniques/NPCs Destroyed . | . . . Combat | -11 -10 -10 -------- Run | Yrd Mat Min Hostile Shots Fired 69 | . 45 24 Missed 17 | . 12 5 Hits 52 | . 33 19 Projectile 52 | . 33 19 AOE 16 | . . 16 Damage Taken 1031 | . 323 708 Core 254 | . 94 160 Absorbed by Shields . | . . . Redirected to Shielding 18 | . . 18 Regen/Repaired (Parts) 53 | . 53 . Core Remaining (%) 100 | 100 . . Volleys Fired 73 | 12 48 13 Largest 2 | 2 2 2 Hottest 80 | 40 40 80 Shots Fired 136 | 24 93 19 Gun 128 | 24 91 13 Cannon . | . . . Launcher 8 | . 2 6 Special . | . . . Kinetic 126 | 24 91 11 Thermal . | . . . Explosive 8 | . 2 6 Electromagnetic 2 | . . 2 Robot Hit Streak 9 | 6 9 3 Robot Miss Streak 5 | 2 5 2 Penetration Max . | . . . Secondary Targets 4 | . 4 . Max Gunslinging Chain 1 | . 1 . Shots Hit Robots 79 | 15 54 10 Core Hits 42 | 7 27 8 Critical Kills 1 | . 1 . Critical Parts Destroyed 1 | . 1 . Critical Strikes 2 | . 2 . Destroy 2 | . 2 . Melee Attacks 3 | . 3 . Impact . | . . . Slashing 3 | . 3 . Piercing . | . . . Sneak Attacks . | . . . Combat Hostiles . | . . . Follow-up Attacks . | . . . Damage Inflicted 1262 | 171 650 441 Guns 840 | 168 586 86 Cannons . | . . . Explosions 396 | . 41 355 Melee . | . . . Ramming 26 | 3 23 . Kinetic 828 | 168 586 74 Thermal 86 | . . 86 Explosive 310 | . 41 269 Electromagnetic 12 | . . 12 Impact . | . . . Slashing . | . . . Piercing . | . . . Highest Corruption 2 | . 2 2 Average Corruption 2 | . 2 2 Corruption Purged . | . . . Corruption Blocked . | . . . Effects 26 | . 23 3 Message Errors 3 | . 3 . Matter Fused 8 | . 8 . Heat Flow Errors 6 | . 5 1 Energy Discharges 3 | . 2 1 Parts Rejected 1 | . . 1 Data Loss (minor) 2 | . 2 . Data Loss (major) 2 | . 2 . Weapon Failures 1 | . 1 . Overload Shots . | . . . Overflow Damage 40 | . . 40 Projectiles . | . . . Explosions 40 | . . 40 Melee . | . . . Knockbacks . | . . . Impact . | . . . Kinetic . | . . . Secondary . | . . . Self-Inflicted Damage 8 | . . 8 Shots 1 | . . 1 Rammed 6 | 2 4 . Targets Rammed 7 | 2 5 . Kicked . | . . . Crushed 1 | . 1 . Highest Temperature 264 | . 264 238 Average Temperature 81 | . 76 101 Received Heat Transfer 114 | . 114 . Siege Activations . | . . . Martial Activations . | . . . Shielding Activations . | . . . Robots Disrupted . | . . . Combat Hostiles . | . . . Robots Corrupted . | . . . Combat Hostiles . | . . . Parts Fried . | . . . Impact Corruptions . | . . . Robots Melted . | . . . Combat Hostiles . | . . . Parts Melted . | . . . Heat Transferred 100 | . . 100 Parts Sabotaged . | . . . Parts Stolen . | . . . Parts Stripped . | . . . Power Chain Reactions . | . . . Alert | -11 -10 -10 ------- Run | Yrd Mat Min Maximum Alert Level 1 | . . 1 Low Security (%) 92 | 100 100 54 Level 1 7 | . . 45 Level 2 . | . . . Level 3 . | . . . Level 4 . | . . . Level 5 . | . . . High Security . | . . . Max Security . | . . . Peak Influence 260 | 5 87 260 Initial 3 | . 3 . Average 36 | 1 22 121 Influence Increases 637 | 15 331 291 Destroy 0b10 Robot/C 340 | . 200 140 Destroy 0b10 Robot/NC 40 | 15 25 . Destroy Leader 66 | . 46 20 Successful Hack 40 | . 40 . Disable Machine 90 | . . 90 Destroy Structure 61 | . 20 41 Influence Decreases 506 | 10 336 160 Entered New Map 2 | . 2 . Time Decay 424 | 10 334 80 Lost Part 80 | . . 80 Squads Dispatched 3 | . 3 . Investigation 2 | . 2 . Extermination . | . . . Reinforcement 1 | . 1 . Assault . | . . . Garrison . | . . . Intercept . | . . . Searches Triggered . | . . . Construction Impeded . | . . . Haulers Reinforced . | . . . Active Scanning Responses . | . . . Cargo Convoy Interrupts . | . . . Stealth | -11 -10 -10 --------- Run | Yrd Mat Min Distress Signals 1 | . 1 . Communications Jammed . | . . . Distress Signals . | . . . Times Spotted 23 | . 17 6 Peak Tracking Total 4 | . 4 3 Tactical Retreats . | . . . Traps | -11 -10 -10 ------- Run | Yrd Mat Min Traps Triggered 3 | . 3 . Indirectly . | . . . Trap Hack Attempts . | . . . Triggered . | . . . Disarmed . | . . . Reprogrammed . | . . . Reused . | . . . Traps Extracted . | . . . Installed . | . . . Triggered . | . . . Machines | -11 -10 -10 ---------- Run | Yrd Mat Min Machines Disabled 6 | . . 6 Max in Single Turn 5 | . . 5 Machines Repaired . | . . . Machines Dismantled . | . . . Machines Sabotaged . | . . . Overloaded Fab Kills . | . . . Hacking | -11 -10 -10 --------- Run | Yrd Mat Min Machines Accessed 7 | . 7 . Terminals 6 | . 6 . Fabricators . | . . . Repair Stations 1 | . 1 . Recycling Units . | . . . Scanalyzers . | . . . Garrison Access . | . . . Total Hacks 25 | . 25 . Successful 11 | . 11 . Failed 14 | . 14 . Catastrophic 1 | . 1 . Database Lockouts . | . . . Manual 20 | . 20 . Terminals 21 | . 21 . Fabricators . | . . . Repair Stations 4 | . 4 . Recycling Units . | . . . Scanalyzers . | . . . Garrison Access . | . . . Terminal Hacks 2 | . 2 . Part Schematic 1 | . 1 . Prototype ID Bank 1 | . 1 . Fabricator Hacks . | . . . Repair Station Hacks 2 | . 2 . Scan Component 1 | . 1 . Repair 1 | . 1 . Recycling Unit Hacks . | . . . Scanalyzer . | . . . Garrison Access Hacks . | . . . Unauthorized Hacks 7 | . 7 . Terminals 7 | . 7 . Botnet 2 | . 2 . Skim 5 | . 5 . Fabricators . | . . . Repair Stations . | . . . Recycling Units . | . . . Scanalyzers . | . . . Garrison Access . | . . . Data Cores Recovered . | . . . Used . | . . . Hacking Detections 7 | . 7 . Full Trace Events 2 | . 2 . Feedback Events . | . . . Feedback Blocked . | . . . Robot Schematics Acquired . | . . . Robots Built . | . . . Authchips . | . . . Time . | . . . Total Robot Build Rating . | . . . Part Schematics Acquired 1 | . 1 . Parts Built . | . . . Authchips . | . . . Time . | . . . Total Part Build Rating . | . . . Part Studies Acquired . | . . . Parts Repaired 1 | . 1 . Time 13 | . 13 . Parts Recycled . | . . . Recycled Matter . | . . . Retrieved Matter . | . . . Retrieved Components . | . . . Parts Scanalyzed . | . . . Part Schematics Acquired . | . . . Parts Damaged . | . . . Bothacking | -11 -10 -10 ------------ Run | Yrd Mat Min Used RIF Installer . | . . . Robots Hacked . | . . . Non-combat . | . . . Combat . | . . . Robot Hacks Applied . | . . . Relay Couplers Released . | . . . Fabnet Peak Effective % . | . . . Robots Rewired . | . . . Allies Hacked . | . . . Hacks Repelled . | . . . Allies | -11 -10 -10 -------- Run | Yrd Mat Min Total Allies . | . . . Largest Group . | . . . Highest-Rated Group . | . . . Highest-Rated Ally . | . . . Total Orders . | . . . Ally Attacks . | . . . Total Damage . | . . . Kills . | . . . Allies Corrupted . | . . . Allies Melted . | . . . Intel | -11 -10 -10 ------- Run | Yrd Mat Min Active Infowar (turns) 1719 | 41 1460 218 Structural 96 | . . 96 Seismic 1623 | 41 1460 122 Robot Analysis Total . | . . . Derelict Logs Recovered . | . . . Drone Launches . | . . . Drone Recoveries . | . . . Exploration | -11 -10 -10 ------------- Run | Yrd Mat Min Turns Passed 1894 | 137 1460 297 Spaces Moved 728 | 53 532 143 Core 8 | 3 . 5 Treads 720 | 50 532 138 Legs . | . . . Wheels . | . . . Hover . | . . . Flight . | . . . Fastest Speed 50 | 50 160 50 Average Speed 158 | 153 160 156 Slowest Speed 160 | 160 160 160 Overloaded Moves . | . . . Propulsion Burnouts . | . . . Robots Hopped . | . . . Potential Cave-ins . | . . . Cave-ins Triggered . | . . . Exploration Rate (%) 44 | 5 80 48 Regions Visited 2 Branch Regions 1 Pre-discovered Areas 1 | . 1 . Known Exits Taken . | . . . Unknown Exits Taken 2 | 1 1 . Scrap Searched 1 | . . 1 Spaces Dug 2 | . 2 . Terrain Destroyed 67 | . 18 49 Melee 2 | . 2 . Projectile . | . . . AOE 65 | . 16 49 Terrain Rammed . | . . . Walls Destroyed . | . . . Machines Disabled . | . . . Actions | -11 -10 -10 --------- Run | Yrd Mat Min Total 1321 | 82 1042 197 Wait 466 | 6 435 25 Move 726 | 52 531 143 Hop . | . . . Pick Up 14 | 3 10 1 Fast Attach 9 | 7 2 . Attach 5 | . . 5 Detach . | . . . Swap 15 | . 8 7 Drop 3 | . . 3 Fire 73 | 12 48 13 Melee 3 | . 3 . Ram . | . . . Kick . | . . . Crush 7 | 2 5 . Escape Stasis . | . . . Rewire . | . . . Trap . | . . . Miscellaneous . | . . . Route ------- -11/Scrapyard -10/Materials (discovered 5 exits: *Mat x3 / [*Min] / Sub) -10/Mines History --------- Turn | Location | Event 4 | -11/Scrapyard | Discovered new exit (range 15) 138 | -11/Scrapyard | Entered Materials 326 | -10/Materials | Build established: Mutant 523 | -10/Materials | Repaired Lgt. Treads 727 | -10/Materials | Discovered new exit (range 16) 885 | -10/Materials | Discovered new exit (range 12) 1154 | -10/Materials | Discovered new exit (range 13) 1231 | -10/Materials | Learned 2 Mines zone layouts 1290 | -10/Materials | Learned location of 2 exits from Subcaves 1341 | -10/Materials | Loaded intel: 10 trap records 1382 | -10/Materials | Learned 4 Recycling zone layouts 1413 | -10/Materials | Learned location of 1 exit from Storage 1433 | -10/Materials | Learned Storage trap positions 1465 | -10/Materials | Identified exit to Materials 1465 | -10/Materials | Identified exit to Subcaves 1509 | -10/Materials | Learned 2 Mines zone layouts 1598 | -10/Materials | Entered Mines 1602 | -10/Mines | Met a Derelict bent on vengeance 1817 | -10/Mines | Assembled infested the area 1875 | -10/Mines | Core integrity fell below 50% 1893 | -10/Mines | Released all parts (2) 1894 | -10/Mines | Core integrity fell below 20% 1895 | -10/Mines | Destroyed by D-53 Grenadier with Mini Grenade Launcher Last Messages --------------- direction." 01817_ ALERT: Infestation in the mines, dispatching Demolisher response squad. 01846_ System corrupted: Heat flow error (+258). 01874_ EM Pulse Gun destroyed. 01877_ Assault Rifle destroyed. 01879_ D-53 Grenadier destroyed. 01881_ Lgt. Treads destroyed. 01882_ The unstable cave ceiling collapses. 01885_ Ion Engine destroyed. 01887_ The unstable cave ceiling collapses. 01887_ Lgt. Treads destroyed. 01890_ The unstable cave ceiling collapses. 01891_ Grenade Launcher destroyed. 01891_ Lgt. Assault Rifle destroyed. 01893_ Released Lrg. Storage Unit. 01893_ Released Core Shielding. [Achievement: Live, Flee, And Rebuild] 01894_ The unstable cave ceiling collapses. 01895_ Acquired 29 matter. Map ----- +----------------------------------------------------+ | | | | | | | | | | | | | ?????????????????????????????????????????????????? | | ?????????????????????????????????????????????????? | | ?????????????????????????????????????????????????? | | ?????????????????????????????????????????????????? | | ?????????????????????????????????????????????????? | | ?????????????????????????????????????????????????? | | ?????????????????????????????????????????????????? | | ?????????????????????????????????????????????????? | | ????????????????????????####?????????????????????? | | ???????????????????????? #?????????????????????? | | ???????????????????????? #?????????????????????? | | ????????????????????????# #?????????????????????? | | ????????????????????????# #?????????????????????? | | ????????????????????????# #?????????????????????? | | ????????????????????????# #?????????????????????? | | ???????????????????????## #?????????????????????? | | ???????????????????????? #?????????????????????? | | ????????????????????????# #?????????????????????? | | ????????????????????????#* #####?????????????????? | | ????????????????????????#@ # # ###???????????????? | | ??????????????????????###= # ##??????????????? | | ?????????????????????## # ##?????????????? | | ????????????????????##" ####### #?????? | | ????????????????????# / #?????? | | ????????????????????# ! #?????? | | ??????????????????## !! #########?????? | | ??????????????????# ## d #?????????????? | | ?????????????????# ##?????????????? | | ?????????????????# # ##??????????????? | | ?????????????????# #### ########????????? | | ????????????????# #?## #########???????? | | ????????????????# # ##?## ### ###???????? | | ????????????????## ####???## ## ##?????### | | ??????????????#### #??????## ##???##### | | ??????????##### ## #??????##### ###?#### | | ?????????? ## #??????###### ###### | | ?????????? ## ####??????#### #### | | ?????????? ## # ##??????#### | | ?????????? ###### #???????#### ## | | ?????????? #????## #????######## ### | | ?????????? ##????## ##???########## #### | | ?????????? #?????### ## #???#### #### ######? | | ?????????? #???????# ## #???### ## ######?? | | ?????????? #???????# ## #???## ###????? | +----------------------------------------------------+ Best States ------------- Heat Dissipation 25 Energy Generation 10 Energy Capacity 250 Matter Stores 300 Matter Capacity 300 Sight Range 16 Terrain Scan Density 10 Core Shielding 20 Evasion (%) 40 Recoil Reduction 2 Item Schematics ----------------- Lgt. Treads | -10/Materials | Hacked Robot Schematics ------------------ None Fabricated ------------ Nothing Repaired ---------- Lgt. Treads | 62% | -10/Materials Studied --------- None Alien Tech Used ----------------- None Achievements -------------- Ghost 'Em Live, Flee, And Rebuild Challenges ------------ None Game ------ Seed ArmoredAmuletReconstructor Manual? 0 Play Time 00:12:39 Cumulative 200.9 hours Start 2025.11.03 @ 17:54:00 End 2025.11.03 @ 18:04:18 Sessions 1 Manual Loads 0 Difficulty Rogue Special Mode None Game No. 190 Rogue 151 Adventurer 32 Explorer 7 Win Type - Total 3 Types 3/0/0/0/0/0/0/0/0/0 Lore% 52 Gallery% 64 Achievement% 34 Wizard Run 0 Options --------- Layout 1 ASCII 0 Keyboard 0 Movement Numpad Keybinds 0 Fullscreen 1 Font 24/Smallcaps Map View 50x35 Zoom Use 0% Tactical HUD 1 Map Filters NONE Filters NONE Steam 1 RUN: 9285aacd-babb-4178-bf19-921c889856f7